{"text_format":"1","workbook":"xlsx","n_sheets":1,"sheets":["Budget Adjustment Request"],"not_rendered":{"charts":0,"images":1,"macros":1,"external_links":0,"defined_names":1,"comments":0,"pivot_tables":0},"unopened":[],"bounds":{"document_bytes":16777216,"sheet_cells":100000,"rows_first":2000,"rows_last":500,"rows_between":2000,"halvings":0,"cell_chars":16384,"cell_head_chars":4096},"cells_cut":0,"cells_raw":0,"read":"whole","date_system":"1900"}

{"sheet":"Budget Adjustment Request","index":0,"n_rows":45,"n_cols":7,"rows_kept":45,"cut":false,"hidden":false,"merged":[]}
[]
[null,"Mid Michigan College",null,"Budget Journal #"]
[null,"Budget Change Request Form",null,null,null,null,"Click to clear form"]
[]
[null,null,null,"(Use Whole Dollars Only)"]
[null,"16 Digit Account Number","Current Budget","Current Available","Addition","Reduction","Revised Budget"]
[null,null,null,null,null,null,{"$f":"C7+E7-F7","v":0}]
[null,null,null,null,null,null,{"$f":"C8+E8-F8","v":0}]
[null,null,null,null,null,null,0]
[null,null,null,null,null,null,0]
[null,null,null,null,null,null,0]
[null,null,null,null,null,null,0]
[null,null,null,null,null,null,0]
[null,null,null,null,null,null,0]
[null,null,null,null,null,null,0]
[null,null,null,null,null,null,0]
[null,null,null,null,null,null,0]
[null,null,null,null,null,null,0]
[null,null,null,null,null,null,0]
[null,null,null,null,null,null,0]
[null,null,null,null,null,null,0]
[null,null,null,null,null,null,0]
[null,null,null,null,null,null,0]
[null,null,null,null,null,null,0]
[null,null,null,null,null,null,0]
[null,null,null,null,null,null,0]
[null,null,null,null,null,null,0]
[null,null,null,null,null,null,0]
[null,null,null,null,null,null,0]
[null,null,null,null,null,null,0]
[null,null,null,null,null,null,0]
[null,null,null,null,null,null,0]
[null,null,null,null,null,null,0]
[null,null,null,null,null,null,0]
[null,null,null,null,null,null,0]
[null,null,null,null,null,null,0]
[null,null,null,null,null,null,0]
[null,null,null,null,null,null,0]
[null,"Total",{"$f":"SUM(C7:C38)","v":0},{"$f":"SUM(D7:D38)","v":0},0,0,0]
[]
[null,"Budget Adjustment for Fiscal Year",null,null,{"$f":"IF(E39<>F39,\"PLEASE CORRECT: TOTALS MUST MATCH\",\"\")","v":""}]
[null,"Requested By",null,null,null,"Date"]
[null,"Budget Officer Approval",null,null,null,"Date"]
[null,"Business Services Approval",null,null,null,"Date"]
[null,"President (if required)",null,null,null,"Date"]